[Event "Mongolian Championship Women 2022"]
[Site "Chingis Khentii"]
[Date "2022.05.23"]
[Round "11.3"]
[White "Bayarmaa, Bayarjargal"]
[Black "Tsetsenbileg, Munkhbayar"]
[Result "1-0"]
[ECO "A91"]
[WhiteElo "2124"]
[BlackElo "1830"]
[Annotator "TA"]
[PlyCount "105"]
[EventDate "2022.05.12"]
[EventType "tourn"]
[EventCountry "MGL"]
[SourceTitle "playchess.com"]
[Source "ChessBase"]
[SourceQuality "1"]
[TimeControl "40/5400+30:1800+30"]

{[%evp 14,105,43,24,26,27,17,10,31,18,24,0,30,31,33,21,53,39,69,0,72,29,54,30,85,8,61,55,52,59,53,48,59,8,79,85,90,84,102,101,97,78,76,19,132,128,143,143,143,143,143,135,143,143,146,120,127,115,216,100,311,332,332,335,342,334,333,256,415,303,318,318,341,311,589,589,574,576,557,548,652,635,593,555,614,594,29963,29964,29980,29981,29981,29982,29982,29982]} 1. d4 {[%emt 0:00:03]} f5 {[%emt 0:05:36]} 2. g3 {[%emt 0:00:12]} Nf6 {[%emt 0:02:16]} 3. Bg2 {[%emt 0:00:36]} e6 {[%emt 0:00:07]} 4. Nh3 {[%emt 0:00:41]} d5 {[%emt 0:00:56]} 5. b3 {[%emt 0:00:38]} c6 {[%emt 0:00:26]} 6. O-O {[%emt 0:00:09]} Be7 {[%emt 0:00:12]} 7. c4 {[%emt 0:00:42]} O-O {[%emt 0:01:16]} 8. Ba3 {[%emt 0:00:31]} Bxa3 {[%emt 0:00:13] A91: Classical Dutch: Early Deviations.} 9. Nxa3 {[%emt 0:00:05]} Qe7 {[%emt 0:00:10]} 10. Nc2 {[%emt 0:01:42]} dxc4 {[%emt 0:08:07] The position is equal.} 11. bxc4 {[%emt 0:00:19]} e5 {[%emt 0:00:01] [#]} 12. e3 $146 {[%emt 0:01:35]} ({Predecessor:} 12. dxe5 Qxe5 13. Nf4 Nbd7 14. Rb1 Nc5 15. Nd3 Qe7 16. Nxc5 Qxc5 17. Qd4 Qe7 18. Ne3 {1-0 (38) Chatalbashev,B (2524)-Sansonetti,G (2194) Castellaneta 1999}) 12... Nbd7 {[%emt 0:04:19]} 13. a4 {[%emt 0:03:46]} Rd8 {[%emt 0:01:24]} 14. Qb1 {[%emt 0:05:20]} Nb6 {[%emt 0:05:11]} 15. c5 {[%emt 0:02:20] [#] aiming for dxe5.} Nbd5 {[%emt 0:00:41]} 16. Re1 {[%emt 0:02:20]} (16. dxe5 $14 Qxe5 17. Bxd5+ Qxd5 18. Rd1 Qxd1+ 19. Qxd1 Rxd1+ 20. Rxd1) 16... h6 {[%emt 0:08:12]} (16... e4 $11) 17. Qb2 {[%emt 0:02:33]} Re8 {[%emt 0:02:46]} 18. Rab1 {[%emt 0:05:05]} Rb8 {[%emt 0:09:26]} (18... e4 $11 {remains equal.}) 19. Qa1 {[%emt 0:01:27]} ({White should play} 19. dxe5 $16 Qxe5 20. Nf4) 19... b6 {[%emt 0:05:16]} (19... e4 $11) 20. dxe5 $14 {[%emt 0:21:50]} Qxe5 {[%emt 0:00:27]} 21. Qxe5 {[%emt 0:00:11]} Rxe5 {[%emt 0:00:02]} 22. Nd4 {[%emt 0:00:07]} Bd7 {[%emt 0:03:01]} 23. Rec1 {[%emt 0:00:15]} (23. cxb6 $14 Rxb6 24. Nf4) 23... Rc8 {[%emt 0:02:45]} (23... g5 $11) 24. cxb6 $16 {[%emt 0:02:28]} axb6 {[%emt 0:00:02]} 25. Nf4 {[%emt 0:00:08]} Nxf4 {[%emt 0:05:05]} 26. gxf4 {[%emt 0:00:16]} Rc5 {[%emt 0:00:06]} 27. Rxc5 {[%emt 0:03:56]} bxc5 {[%emt 0:00:06]} 28. Ne2 {[%emt 0:00:03] White is more active.} (28. Nf3 $16) 28... Nd5 {[%emt 0:02:33]} (28... Ra8 $11) 29. Rc1 {[%emt 0:00:45]} Ra8 {[%emt 0:00:09]} 30. Rxc5 {[%emt 0:00:34]} Rxa4 {[%emt 0:00:05]} 31. Bxd5+ {[%emt 0:00:22]} cxd5 {[%emt 0:00:04][%mdl 4096] Endgame KRB-KRN} 32. Nd4 {[%emt 0:00:05]} ({But not} 32. Rxd5 $2 Ra1+ 33. Kg2 Bc6 $19) 32... Rc4 {[%emt 0:08:54]} 33. Rxd5 {[%emt 0:45:56]} Bc8 {[#] ...Rc1+ is the strong threat.} 34. f3 {[%emt 0:00:00]} ({And not} 34. Nxf5 Rc1+ 35. Kg2 Bb7 $11) 34... g6 {[%emt 0:00:24]} 35. Rd6 {[%emt 0:00:00]} Kf7 {[%emt 0:00:41]} (35... Kg7 $16 {was necessary.} 36. Nc6 g5) 36. Kf2 {[%emt 0:00:00]} (36. Nc6 $18 {and White stays clearly on top. Strongly threatening Ne5+.} Rc1+ 37. Kf2) 36... Rb4 $2 {[%emt 0:01:28] This costs Black the game.} (36... Ra4 $16 {might work better.} 37. Nc6 Ra2+ 38. Kg3 Ra6) 37. Nc6 $18 {[%emt 0:00:00]} Rb2+ {[%emt 0:00:25]} 38. Kg3 {[%emt 0:00:00]} Re2 {[%emt 0:01:21]} 39. Ne5+ {[%emt 0:00:00]} Ke7 {[%emt 0:01:21]} 40. Rc6 {[%emt 0:00:00]} Kd8 {[%emt 0:00:00]} (40... Be6 {is a better defense.} 41. Nxg6+ Kf7 42. Ne5+ Kf6) 41. Rc3 {[%emt 0:00:00]} Be6 {[%emt 0:02:28]} 42. Nxg6 {[%emt 0:00:00]} Ke8 {[%emt 0:00:12]} 43. Ne5 {[%emt 0:00:00]} Ke7 $2 {[%emt 0:00:17]} (43... Bd5 {was called for.} 44. Rc8+ Ke7 45. Rc7+ Ke6) 44. Nc6+ {[%emt 0:00:00]} Kd7 {[%emt 0:00:31]} 45. Nd4 {[%emt 0:00:00]} Re1 {[%emt 0:00:15]} 46. Ra3 {[%emt 0:00:00]} Rg1+ {[%emt 0:00:19]} 47. Kf2 {[%emt 0:00:00]} Rg6 {[%emt 0:00:09]} 48. Ra7+ {[%emt 0:00:00]} Ke8 {[%emt 0:00:11]} 49. Ra6 {[%emt 0:00:00]} Kf7 {[%emt 0:00:04]} 50. Rxe6 {[%emt 0:00:00] White mates.} Rxe6 {[%emt 0:00:03]} 51. Nxe6 {[%emt 0:00:00]} Kxe6 {[%emt 0:00:02]} 52. e4 {[%emt 0:00:00]} fxe4 {[%emt 0:00:02]} 53. fxe4 {[%emt 0:40:00] Weighted Error Value: White=0.23 (precise) /Black=0.44} 1-0

[Event "Mongolian Championship Women 2022"]
[Site "Chingis Khentii"]
[Date "2022.05.23"]
[Round "11.4"]
[White "Enkhtuul, Altan-Ulzii"]
[Black "Munguntuul, Batkhuyag"]
[Result "1/2-1/2"]
[ECO "A00"]
[WhiteElo "2228"]
[BlackElo "2443"]
[Annotator "TA"]
[PlyCount "98"]
[EventDate "2022.05.12"]
[EventType "tourn"]
[EventCountry "MGL"]
[SourceTitle "playchess.com"]
[Source "ChessBase"]
[SourceQuality "1"]
[TimeControl "40/5400+30:1800+30"]

{[%evp 9,98,-19,0,-21,0,-6,0,0,0,0,0,0,22,13,13,9,15,11,17,0,51,52,43,43,66,23,35,22,46,61,43,37,54,0,18,-30,-32,-36,-13,-16,59,66,65,58,72,74,69,70,55,0,0,-48,-60,-58,-56,-63,32,-58,-43,-62,-33,-79,-89,-120,-72,-74,-7,-7,-6,-14,0,0,0,0,0,0,14,0,0,0,0,0,0,0,0,0,0,0,0,0,0]} 1. b4 {[%emt 0:01:06]} e5 {[%emt 0:00:19]} 2. Bb2 {[%emt 0:00:14]} Bxb4 {[%emt 0:00:20]} 3. Bxe5 {[%emt 0:00:07]} Nf6 {[%emt 0:00:12]} 4. Nf3 {[%emt 0:00:06]} O-O {[%emt 0:00:48]} 5. e3 {[%emt 0:01:01]} d5 {[%emt 0:00:22]} 6. a3 {[%emt 0:02:02] A00: Irregular Openings.} Ba5 {[%emt 0:01:50]} 7. c4 $1 {[%emt 0:02:21]} Nc6 {[%emt 0:14:28]} 8. Bb2 {[%emt 0:01:52]} Bg4 {[%emt 0:05:13]} 9. cxd5 {[%emt 0:00:06]} Nxd5 {[%emt 0:00:58]} 10. Be2 {[%emt 0:00:31]} Qe7 {[%emt 0:04:47]} 11. O-O $1 {[%emt 0:00:49]} Rad8 {[%emt 0:00:55]} 12. Qa4 {[%emt 0:09:20]} Bh5 {[%emt 0:04:57]} 13. Rc1 {[%emt 0:00:20] [#]} Bb6 $146 {[%emt 0:01:32]} ({Predecessor:} 13... Nb6 14. Qb5 Rd5 15. Qb3 Qe6 16. Bc3 Rd6 17. Qxe6 fxe6 18. Bxa5 Nxa5 19. Rxc7 Nd5 {0-1 (29) Roig Garcia,J (1781)-Puertas Covarrubias,F (1944) ICCF email 2018}) 14. Nc3 {[%emt 0:02:43]} h6 {[%emt 0:02:06]} (14... Nf6 $1 $11) 15. Nxd5 $14 {[%emt 0:21:33]} Rxd5 {[%emt 0:00:12]} 16. Bc3 {[%emt 0:03:24]} Re8 {[%emt 0:09:32]} 17. Qf4 {[%emt 0:04:17]} Na5 {[%emt 0:08:10]} 18. Qg3 {[%emt 0:03:12][%csl Gc3][%cal Rg3g7] [#]} Qf8 {[%emt 0:06:21]} 19. Rab1 {[%emt 0:04:45] Inhibits Nb3.} Re6 {[%emt 0:01:00]} 20. h3 {[%emt 0:11:44]} c6 {[%emt 0:03:01]} 21. Kf1 {[%emt 0:11:47]} Bg6 {[%emt 0:03:38]} 22. Rb4 {[%emt 0:06:14]} (22. Rb2 {feels stronger.}) 22... Bc5 $11 {[%emt 0:03:17]} 23. Nd4 {[%emt 0:01:22]} Bxd4 {[%emt 0:08:38]} 24. Bxd4 {[%emt 0:01:34]} Be4 {[%emt 0:11:45]} (24... c5 $11 25. Rb5 b6 26. Bxc5 Qc8 27. Rxa5 (27. d4 $2 Nb7 $17) 27... bxa5) 25. f3 $14 {[%emt 0:01:54]} c5 $1 {[%emt 0:01:22] Strongly threatening ...Rg6.} 26. fxe4 {[%emt 0:00:40]} Rg5 {[%emt 0:00:02] [#]} 27. Bxc5 $1 {[%emt 0:01:22]} Rxc5 {[%emt 0:00:36]} 28. Rxc5 {[%emt 0:00:16]} Qxc5 {[%emt 0:00:01]} 29. Qb8+ {[%emt 0:02:35]} ({White should play} 29. Qe1 $1 $14) 29... Kh7 $11 {[%emt 0:00:03]} 30. Bd3 {[%emt 0:00:46]} (30. Qg3 $11 {might be stronger.}) 30... Nc6 $1 $36 {[%emt 0:02:39][%csl LRb4,LRb8][%mdl 2048] Black is more active.} 31. Qxb7 {[%emt 0:01:08] Threatens to win with e5+.} Nxb4 {[%emt 0:02:36]} 32. axb4 {[%emt 0:00:05][%mdl 4096] Endgame KQR-KQB} Qe5 {[%emt 0:00:34]} (32... Qe7 $15 33. Qxe7 Rxe7) 33. Ke2 {[%emt 0:02:02]} (33. Qxa7 $14 Rd6 34. Qa3) 33... Re7 $1 {[%emt 0:02:45][%mdl 1024] Black has compensation.} 34. Qc8 {[%emt 0:01:37]} Qh2 {[%emt 0:01:06]} 35. Qf5+ {[%emt 0:02:07]} (35. Kf3 $15) 35... g6 $17 {[%emt 0:00:04]} 36. Qf3 {[%emt 0:00:29]} Qd6 {[%emt 0:00:34]} (36... Kg7 $142 {White must now prevent ...Re6.} 37. Bc4 Qe5) 37. Bc4 {[%emt 0:00:31] Against Re6} Kg7 {[%emt 0:01:20]} (37... Rd7 $17 38. d4 Qxb4 39. Bxf7 Qb2+ 40. Kf1 Qc1+ 41. Kf2 Qc2+ 42. Kg1 Qc1+ 43. Kf2 Qc2+ 44. Kg1 Qc1+ 45. Kf2) 38. b5 $1 $11 {[%emt 0:00:20] The position is equal.} Qb4 {[%emt 0:00:06]} 39. d3 {[%emt 0:00:39]} Qc3 {[%emt 0:01:01]} 40. Qf4 {[%emt 0:00:00]} Rd7 {[%emt 0:00:00]} 41. e5 {[%emt 0:05:29]} Kh7 {[%emt 0:02:54]} 42. Qf6 {[%emt 0:01:05]} h5 {[%emt 0:03:26]} 43. Kf3 {[%emt 0:14:05] Active counter play!} Qc1 {[%emt 0:01:40]} 44. Ke4 {[%emt 0:00:29]} Qb2 {[%emt 0:04:12]} 45. Kf3 {[%emt 0:00:32]} Qc1 {[%emt 0:04:00]} 46. Ke4 {[%emt 0:00:35]} Qb2 {[%emt 0:04:13]} 47. Kf3 {[%emt 0:00:16]} Qc1 {[%emt 0:00:31]} 48. Ke4 {[%emt 0:01:55]} Qb2 {[%emt 0:00:35]} 49. Kf3 {[%emt 0:00:05]} Qc1 {[%emt 0:00:05] Weighted Error Value: White=0.11 (very precise) /Black=0.17 (very precise)} 1/2-1/2

[Event "Mongolian Championship Women 2022"]
[Site "Chingis Khentii"]
[Date "2022.05.23"]
[Round "11.5"]
[White "Anu, Bayar"]
[Black "Munkhzul, Turmunkh"]
[Result "0-1"]
[ECO "E05"]
[WhiteElo "2102"]
[BlackElo "2294"]
[Annotator "TA"]
[PlyCount "58"]
[EventDate "2022.05.12"]
[EventType "tourn"]
[EventCountry "MGL"]
[SourceTitle "playchess.com"]
[Source "ChessBase"]
[SourceQuality "1"]
[TimeControl "40/5400+30:1800+30"]

{[%evp 23,58,4,15,9,15,0,10,-6,-14,-70,-29,-41,-53,-40,-52,-40,-44,-80,-47,-79,-96,-148,-138,-358,-271,-347,-291,-354,-337,-433,-325,-5506,-5487,-5497,-5384,-2629,-2473]} 1. d4 {[%emt 0:01:57] Illescas Cordoba,M} Nf6 {[%emt 0:00:15]} 2. c4 {[%emt 0:01:05]} e6 {[%emt 0:00:18]} 3. g3 {[%emt 0:00:20]} d5 {[%emt 0:00:10]} 4. Nf3 {[%emt 0:00:19]} Be7 {[%emt 0:00:19]} 5. Bg2 {[%emt 0:02:15]} O-O {[%emt 0:00:17]} 6. O-O {[%emt 0:00:21]} dxc4 {[%emt 1:32:11]} 7. Qc2 {[%emt 0:02:43]} a6 {[%emt 0:00:00]} 8. a4 {[%emt 0:00:12]} Bd7 {[%emt 0:00:00]} 9. Rd1 {[%emt 0:00:34]} Bc6 {[%emt 0:00:00]} 10. Nc3 {[%emt 0:01:11]} Bxf3 {[%emt 0:00:00]} 11. Bxf3 {[%emt 0:00:06]} Nc6 {[%emt 0:00:00]} 12. Bxc6 {[%emt 0:01:15]} bxc6 {[%emt 0:00:00]} 13. Bg5 {[%emt 0:01:30] E05: Open Catalan: 5 Nf3 Be7.} Rb8 {[%emt 0:00:00]} 14. Bxf6 {[%emt 0:16:21]} Bxf6 {[%emt 0:00:00]} 15. Ne4 {[%emt 0:21:51] The position is equal. was the old line (15.e3).} Rb4 {[%emt 0:00:00] [#]} 16. Ra3 $146 {[%emt 0:02:23]} (16. Nc5 $11) ({Predecessor:} 16. e3 Qd5 17. Rac1 Rfb8 18. Nc5 a5 19. Qe2 Be7 20. e4 Qd8 21. Na6 Rxb2 22. Qxc4 {½-½ (41) Illescas Cordoba,M (2600)-Beliavsky,A (2690) Madrid 1998 CBM 065 [Illescas Cordoba,M]}) 16... Be7 {[%emt 0:00:00]} (16... Bxd4 17. e3 Rxb2 18. Qxc4 $11) (16... Qd5 $5 {[%cal Rf6d4]} 17. Nxf6+ gxf6 $15) 17. Rc3 {[%emt 0:06:20]} Qd5 {[%emt 0:00:00]} 18. Nd2 {[%emt 0:07:29][%cal Rd2c4]} c5 {[%emt 0:00:00]} ({Much less strong is} 18... Qxd4 19. Nxc4 Qc5 20. b3 $11) 19. e4 {[%emt 0:08:54]} Qh5 {[%emt 0:00:00]} ({Don't play} 19... Qxd4 20. Nxc4 Qf6 21. e5 $16) 20. Rxc4 {[%emt 0:02:18]} cxd4 {[%emt 0:00:00][%cal Ob4b2] [#] aiming for ...Rxb2!} 21. Rxc7 {[%emt 0:03:00]} Rxb2 {[%emt 0:00:00]} 22. Qc1 {[%emt 0:02:38]} (22. Qxb2 $142 Qxd1+ 23. Kg2) 22... Bb4 {[%emt 0:00:00] 0x0.001de5fae1a4dp-1022s more active pieces.} 23. Rc8 $2 {[%emt 0:01:03]} (23. Nc4 $17 Re2 24. Rf1) 23... Bc3 {[%emt 0:00:00]} 24. Rxf8+ {[%emt 0:00:06]} Kxf8 {[%emt 0:00:00]} 25. Nc4 {[%emt 0:00:08]} Rb4 {[%emt 0:00:00][%csl LRa4,LRc4]} 26. Nd6 {[%emt 0:01:53]} Rxa4 {[%emt 0:00:00] [#] Threatens to win with ...Ra1.} 27. Nc8 $2 {[%emt 0:00:07]} (27. Qc2 Rb4 28. Rb1) 27... Ra1 $19 {[%emt 0:00:00] Black is clearly winning.} 28. Qxa1 {[%emt 0:00:49]} Bxa1 {[%emt 0:00:00]} 29. Rxa1 {[%emt 0:00:04]} Qc5 {[%emt 0:00:00] Black took control after the opening.  Weighted Error Value: White=0.88/Black=0.21 (precise)} 0-1

[Event "Mongolian Championship Women 2022"]
[Site "Chingis Khentii"]
[Date "2022.05.23"]
[Round "11.6"]
[White "Munkhzul, Davaakhuu"]
[Black "Khulan, Enkhsaikhan"]
[Result "1-0"]
[ECO "B15"]
[WhiteElo "1991"]
[BlackElo "2111"]
[Annotator "TA"]
[PlyCount "197"]
[EventDate "2022.05.12"]
[EventType "tourn"]
[EventCountry "MGL"]
[SourceTitle "playchess.com"]
[Source "ChessBase"]
[SourceQuality "1"]
[TimeControl "40/5400+30:1800+30"]

{[%evp 12,197,21,4,23,9,25,0,0,0,4,8,0,5,0,0,5,-28,0,0,6,-17,18,14,43,41,39,6,3,13,2,10,0,0,29,29,322,270,370,37,33,34,23,16,20,0,0,0,15,8,16,0,0,0,175,175,201,0,0,6,6,-38,-38,-39,-39,-41,-48,-48,-48,-48,129,129,129,129,129,129,129,129,129,129,129,129,129,129,129,100,100,100,100,100,100,100,100,100,100,100,100,100,100,100,100,100,100,100,100,100,100,100,100,100,100,100,100,100,100,100,100,100,100,0,100,100,100,100,100,0,100,0,108,0,0,0,0,0,0,0,0,0,0,0,0,0,0,0,0,0,0,0,0,0,0,0,0,0,29963,29964,29966,29967,29967,29967,29967,29968,29969,29967,12552,5712,29971,29972,29972,29972,29977,29978,29979,29974,29973,29975,29974,29975,29974,29974,29973,29968,29977,29978,29981,29982,29979,29980]} 1. e4 {[%emt 0:00:02]} c6 {[%emt 0:01:43]} 2. Nc3 {[%emt 0:00:11]} d5 {[%emt 0:00:06]} 3. Nf3 {[%emt 0:00:07]} dxe4 {[%emt 0:00:07]} 4. Nxe4 {[%emt 0:00:05]} Nf6 {[%emt 0:00:09]} 5. Nxf6+ {[%emt 0:00:19]} exf6 {[%emt 0:00:11]} 6. d4 {[%emt 0:02:10]} Bd6 {[%emt 0:00:11]} 7. Be2 {[%emt 0:04:54]} Bg4 {[%emt 0:00:41] B15: Caro-Kann: 3 Nc3: 3...g6 and 3...dxe4 4 Nxe4 Nf6 5 Nxf6+ exf6.} 8. Be3 {[%emt 0:03:00] [#]} a5 $146 {[%emt 0:03:44]} ({Predecessor:} 8... O-O 9. Nh4 Bxe2 10. Qxe2 f5 11. Qh5 g6 12. Qh6 Re8 13. g4 Bf8 14. Qf4 Qxh4 15. O-O-O Qxg4 16. Qc7 Na6 17. Qa5 Nb4 {0-1 (17) Novosadova,K (2150)-Sabuk,P (2398) Brno 2021}) 9. O-O {[%emt 0:03:22]} O-O {[%emt 0:00:27] The position is equal.} 10. c4 {[%emt 0:06:16]} Re8 {[%emt 0:02:25]} 11. h3 {[%emt 0:09:28]} Bh5 {[%emt 0:00:26]} 12. Qb3 {[%emt 0:01:41]} Qc7 {[%emt 0:03:44]} 13. c5 {[%emt 0:20:06]} Bf8 {[%emt 0:02:04]} 14. d5 {[%emt 0:09:03]} cxd5 {[%emt 0:05:26]} (14... Bxc5 $5 15. Bxc5 Rxe2 $15) 15. Qxd5 {[%emt 0:00:44]} Bg6 {[%emt 0:00:40]} 16. Nd4 {[%emt 0:06:07]} Nc6 {[%emt 0:11:38][%cal Bb8c6,Bc6b4,Bb4a2][%mdl 32]} (16... Re5 $5 {[%cal Re5d5]} 17. Qb3 (17. Nb5 Qe7 $11) 17... a4 $11) 17. Nb5 {[%emt 0:03:05]} Qe5 {[%emt 0:03:28]} (17... Qb8 $5 {[%cal Rc6b4]}) 18. Qxe5 {[%emt 0:01:53]} Rxe5 {[%emt 0:01:01]} 19. Rac1 {[%emt 0:00:26]} Nb4 {[%emt 0:02:50]} 20. Rfd1 {[%emt 0:00:34]} Nxa2 {[%emt 0:05:56]} 21. Rc4 {[%emt 0:00:21] And now Ra1 would win.} Nb4 {[%emt 0:01:37]} 22. Bf3 {[%emt 0:03:34]} Nc6 {[%emt 0:04:41]} 23. Nd6 {[%emt 0:01:52]} Bxd6 {[%emt 0:05:59][%mdl 8192]} (23... Re7 $1 $11 {and Black has nothing to worry.}) 24. cxd6 $18 {[%emt 0:00:10]} Bf5 {[%emt 0:11:20]} 25. Rxc6 $2 {[%emt 0:01:15]} (25. d7 $18 Rd8 26. Bxc6 bxc6 27. Rxc6) 25... bxc6 $14 {[%emt 0:00:58]} 26. Bxc6 {[%emt 0:00:12]} Rxe3 $1 {[%emt 0:04:03]} 27. Bxa8 $18 {[%emt 0:14:51][%mdl 4096] Endgame KRB-KRB} Re8 {[%emt 0:00:18]} 28. Bf3 {[%emt 0:00:18]} Bd7 {[%emt 0:01:12]} 29. Rd5 {[%emt 0:03:08]} a4 {[%emt 0:00:51]} 30. Ra5 {[%emt 0:00:08]} g6 {[%emt 0:01:34]} 31. Ra7 {[%emt 0:05:45]} Rd8 {[%emt 0:00:16]} 32. Bd5 {[%emt 0:00:34]} f5 $2 {[%emt 0:01:23]} (32... Kf8 $11) 33. f4 $1 {[%emt 0:00:16]} Kg7 {[%emt 0:00:09]} 34. Kf2 $2 {[%emt 0:00:24]} (34. Ra8 $1 $18 {[%cal Ra8d8]} Rxa8 35. Bxa8) 34... Kf6 $1 $11 {[%emt 0:00:28]} 35. Ke3 {[%emt 0:01:01]} Be6 {[%emt 0:00:51]} 36. Bf3 {[%emt 0:00:27]} Rxd6 {[%emt 0:01:20]} 37. Rxa4 {[%emt 0:00:02]} Rb6 $1 {[%emt 0:00:21]} 38. b4 {[%emt 0:00:07] Strongly threatening Kd4.} Bb3 {[%emt 0:00:41]} 39. Ra1 {[%emt 0:00:02]} Rxb4 {[%emt 0:01:04]} 40. Rb1 {[%emt 0:00:00]} Rb8 $2 {[%emt 0:00:00]} (40... Rb5 $1 $15 {stays ahead.}) 41. Kf2 $16 {[%emt 0:03:41][%mdl 1024] White has strong compensation.} Rb5 {[%emt 0:02:57]} 42. Be2 {[%emt 0:02:17] Inhibits Bc4.} Rb4 {[%emt 0:02:12]} 43. g3 {[%emt 0:01:00]} h6 {[%emt 0:00:50]} 44. Bd1 {[%emt 0:01:48]} Bxd1 {[%emt 0:00:10]} 45. Rxb4 {[%emt 0:00:03] KR-KB} Bc2 {[%emt 0:00:12]} 46. Rb8 {[%emt 0:02:34]} Be4 {[%emt 0:03:47]} 47. Rg8 {[%emt 0:02:23]} h5 {[%emt 0:00:24]} 48. Ke3 {[%emt 0:02:45][%cal Og3g4] Hoping for g4!} Bg2 {[%emt 0:00:23]} 49. h4 {[%emt 0:00:53]} Bd5 {[%emt 0:01:37]} 50. Kd4 {[%emt 0:00:25]} Be6 {[%emt 0:01:29]} 51. Kc5 {[%emt 0:00:15]} Ke7 {[%emt 0:00:35]} 52. Kc6 {[%emt 0:00:31]} Bb3 {[%emt 0:01:22]} 53. Kc7 {[%emt 0:08:01]} Ba2 {[%emt 0:00:55]} 54. Ra8 $1 {[%emt 0:00:26]} Bd5 {[%emt 0:00:54]} 55. Ra5 {[%emt 0:01:24]} Bb3 {[%emt 0:00:24]} 56. Re5+ {[%emt 0:00:28]} Be6 {[%emt 0:00:48]} 57. Re3 {[%emt 0:01:29]} Kf6 {[%emt 0:00:14]} 58. Kd8 {[%emt 0:00:54]} Bd5 {[%emt 0:00:48]} 59. Re5 {[%emt 0:00:36]} Ba2 {[%emt 0:00:53]} 60. Ra5 {[%emt 0:01:08]} Bb3 {[%emt 0:00:45]} 61. Ra3 {[%emt 0:01:17]} Bc4 {[%emt 0:00:18]} 62. Rc3 {[%emt 0:01:40]} Ba2 {[%emt 0:00:28]} 63. Rc6+ {[%emt 0:01:39]} Kg7 {[%emt 0:00:13]} 64. Ke8 {[%emt 0:01:15]} Bd5 {[%emt 0:00:33]} 65. Rb6 {[%emt 0:00:24]} ({White should play} 65. Ra6 $16) 65... Bc4 {[%emt 0:00:45]} (65... Be6 $1 $11) 66. Ke7 {[%emt 0:01:49]} Ba2 {[%emt 0:01:01]} 67. Ra6 {[%emt 0:01:34]} Bb3 {[%emt 0:00:37]} 68. Rb6 {[%emt 0:00:17]} Ba2 $1 {[%emt 0:00:08]} 69. Ra6 {[%emt 0:00:49]} Bb3 {[%emt 0:00:07]} 70. Rb6 {[%emt 0:00:07]} ({Better is} 70. Ra5 $16) 70... Ba2 $11 {[%emt 0:00:05]} 71. Rb2 {[%emt 0:01:01]} Bd5 {[%emt 0:00:24]} 72. Kd6 {[%emt 0:00:05]} Bc4 {[%emt 0:00:15]} 73. Ke5 {[%emt 0:00:25]} Be6 {[%emt 0:00:49]} 74. Rb4 {[%emt 0:00:54]} Ba2 {[%emt 0:00:13]} 75. Kd4 {[%emt 0:00:11]} Be6 {[%emt 0:00:38]} 76. Rb2 {[%emt 0:00:34]} Bc8 {[%emt 0:00:14]} 77. Kd5 {[%emt 0:01:11]} Be6+ {[%emt 0:00:09]} 78. Kc5 {[%emt 0:00:05]} Kf6 {[%emt 0:01:41]} 79. Kd6 {[%emt 0:00:51]} Bc4 {[%emt 0:00:12]} 80. Rb8 {[%emt 0:00:51]} Ba2 {[%emt 0:00:18]} 81. Ra8 {[%emt 0:00:59]} Bc4 {[%emt 0:00:18]} 82. Rg8 {[%emt 0:00:16]} Ba2 $2 {[%emt 0:00:15][%mdl 8192] [#] Black is now going downhill.} (82... Bd3 $11) 83. Kd7 $1 {[%emt 0:00:49]} Be6+ {[%emt 0:00:17]} 84. Ke8 {[%emt 0:00:09]} Bd5 {[%emt 0:00:20] [#]} 85. Kf8 $1 {[%emt 0:00:09]} Ba2 {[%emt 0:02:34]} 86. Rh8 {[%emt 0:00:20]} Bc4 {[%emt 0:00:27]} 87. Kg8 {[%emt 0:00:29]} Bb3 {[%emt 0:03:09]} 88. Kh7 {[%emt 0:00:10] White threatens Re8 and mate.} Ba2 {[%emt 0:03:21]} 89. Re8 {[%emt 0:00:27] White mates.} Bd5 {[%emt 0:01:38]} 90. Kg8 {[%emt 0:00:30]} Ba2 {[%emt 0:00:37]} 91. Kf8 {[%emt 0:00:09]} Bd5 {[%emt 0:01:43]} 92. Rb8 {[%emt 0:00:59]} Ke6 {[%emt 0:00:30]} 93. Rb6+ {[%emt 0:00:37]} Kd7 {[%emt 0:00:13]} 94. Rf6 {[%emt 0:00:11]} Bc4 {[%emt 0:01:04]} 95. Rxf7+ {[%emt 0:00:20]} Ke6 {[%emt 0:00:07]} 96. Kg7 {[%emt 0:00:17]} Be2 {[%emt 0:00:10]} 97. Kxg6 {[%emt 0:00:27]} Bg4 {[%emt 0:00:09]} 98. Rf6+ {[%emt 0:00:06]} Kd5 {[%emt 0:00:07]} 99. Rxf5+ {[%emt 0:00:10] Weighted Error Value: White=0.18 (very precise) /Black=0.25 (precise)} 1-0